fUST/lending_fUST_20251203
["ID","MTS","AMOUNT","RATE_DAILY","PERIOD"]
[395875349,1764733843714,-500.0,0.00011128,2]
[395875351,1764733843723,-500.0,0.00011128,2]
[395875353,1764733843732,-500.0,0.00011128,2]
[395875355,1764733843742,-500.0,0.00011128,2]
[395875357,1764733843751,-500.0,0.00011128,2]
[395875359,1764733843761,-500.0,0.00011128,2]
[395875361,1764733843771,-500.0,0.00011128,2]
[395875363,1764733843780,-500.0,0.00011128,2]
[395875365,1764733843789,-508.66,0.00011128,2]
[395875367,1764733843799,-500.0,0.00011128,2]
[395875369,1764733843808,-1184.13,0.00011128,2]
[395875371,1764733843818,-237.48798554,0.00011128,2]
[395875373,1764733843827,-500.0,0.00011128,2]
[395875375,1764733843836,-1127.47,0.00011128,2]
[395875377,1764733843846,-500.0,0.00011128,2]
[395875379,1764733843855,-500.0,0.00011128,2]
[395875381,1764733843865,-500.0,0.00011128,2]
[395875383,1764733843874,-502.45,0.00011128,2]
[395875385,1764733843884,-500.0,0.00011128,2]
[395875387,1764733843893,-500.0,0.00011128,2]
[395875389,1764733843901,-500.0,0.00011128,2]
[395875391,1764733843910,-500.0,0.00011128,2]
[395875393,1764733843919,-728.66,0.00011128,2]
[395875395,1764733843928,-500.0,0.00011128,2]
[395875397,1764733843938,-500.0,0.00011128,2]
[395875399,1764733843947,-581.11,0.00011128,2]
[395875401,1764733843956,-500.0,0.00011128,2]
[395875403,1764733843965,-500.0,0.00011128,2]
[395875405,1764733843975,-503.71195151,0.00011128,2]
[395875407,1764733843984,-500.0,0.00011128,2]
[395875409,1764733843993,-500.0,0.00011128,2]
[395875411,1764733844003,-540.4,0.00011128,2]
[395875413,1764733844012,-500.0,0.00011128,2]
[395875415,1764733844021,-500.0,0.00011128,2]
[395875417,1764733844030,-500.0,0.00011128,2]
[395875419,1764733844039,-500.0,0.00011128,2]
[395875421,1764733844048,-500.0,0.00011128,2]
[395875423,1764733844058,-500.0,0.00011128,2]
[395875424,1764733844066,-500.0,0.00011128,2]
[395875426,1764733844075,-570.68,0.00011128,2]
[395875428,1764733844085,-505.82,0.00011128,2]
[395875431,1764733844094,-500.0,0.00011128,2]
[395875433,1764733844104,-500.0,0.00011128,2]
[395875434,1764733844113,-505.38645393,0.00011128,2]
[395875436,1764733844123,-500.0,0.00011128,2]
[395875438,1764733844133,-547.23,0.00011128,2]
[395875440,1764733844143,-500.0,0.00011128,2]
[395875442,1764733844152,-500.0,0.00011128,2]
[395875444,1764733844161,-500.0,0.00011128,2]
[395875446,1764733844170,-500.0,0.00011128,2]
[395875448,1764733844179,-500.0,0.00011128,2]
[395875450,1764733844188,-1036.57,0.00011128,2]
[395875452,1764733844197,-500.0,0.00011128,2]
[395875454,1764733844207,-500.0,0.00011128,2]
[395875456,1764733844216,-862.74,0.00011128,2]
[395875458,1764733844225,-500.0,0.00011128,2]
[395875460,1764733844234,-500.0,0.00011128,2]
[395875462,1764733844243,-500.0,0.00011128,2]
[395875464,1764733844252,-500.0,0.00011128,2]
[395875466,1764733844261,-501.43,0.00011128,2]
[395875468,1764733844270,-500.0,0.00011128,2]
[395875470,1764733844279,-501.22750964,0.00011128,2]
[395875472,1764733844289,-500.0,0.00011128,2]
[395875474,1764733844298,-636.4,0.00011128,2]
[395875476,1764733844309,-500.0,0.00011128,2]
[395875478,1764733844318,-429.49695903,0.00011128,2]
[395875480,1764733844328,-500.0,0.00011128,2]
[395875483,1764733844338,-628.39,0.00011128,2]
[395875485,1764733844348,-500.0,0.00011128,2]
[395875487,1764733844358,-500.0,0.00011128,2]
[395875489,1764733844368,-500.0,0.00011128,2]
[395875491,1764733844377,-770.15,0.00011128,2]
[395875492,1764733844387,-759.11,0.00011128,2]
[395875495,1764733844396,-1472.5,0.00011128,2]
[395875496,1764733844406,-641.21828314,0.00011128,2]
[395875499,1764733844415,-500.0,0.00011128,2]
[395875501,1764733844425,-500.0,0.00011128,2]
[395875502,1764733844435,-275.25565112,0.00011128,2]
[395875504,1764733844447,-546.49,0.00011128,2]
[395875507,1764733844458,-500.0,0.00011128,2]
[395875509,1764733844467,-500.0,0.00011128,2]
[395875511,1764733844479,-816.6,0.00011128,2]
[395875513,1764733844488,-500.0,0.00011128,2]
[395875515,1764733844498,-575.46,0.00011128,2]
[395875517,1764733844507,-500.0,0.00011128,2]
[395875519,1764733844517,-500.0,0.00011128,2]
[395875521,1764733844526,-500.0,0.00011128,2]
[395875523,1764733844536,-501.43,0.00011128,2]
[395875525,1764733844545,-500.0,0.00011128,2]
[395875527,1764733844555,-500.0,0.00011128,2]
[395875529,1764733844565,-500.0,0.00011128,2]
[395875531,1764733844575,-500.0,0.00011128,2]
[395875533,1764733844585,-500.0,0.00011128,2]
[395875535,1764733844594,-500.0,0.00011128,2]
[395875537,1764733844604,-500.0,0.00011128,2]
[395875539,1764733844614,-500.0,0.00011128,2]
[395875541,1764733844624,-500.0,0.00011128,2]
[395875543,1764733844635,-1021.42,0.00011128,2]
[395875545,1764733844645,-500.0,0.00011128,2]
[395875547,1764733844654,-500.0,0.00011128,2]
[395875549,1764733844664,-1683.21,0.00011128,2]
[395875551,1764733844674,-450.18606374,0.00011128,2]
[395875553,1764733844685,-750.91,0.00011128,2]
[395875555,1764733844695,-500.0,0.00011128,2]
[395875557,1764733844704,-500.0,0.00011128,2]
[395875559,1764733844715,-500.0,0.00011128,2]
[395875561,1764733844724,-539.58,0.00011128,2]
[395875563,1764733844733,-500.0,0.00011128,2]
[395875565,1764733844743,-500.0,0.00011128,2]
[395875567,1764733844753,-500.0,0.00011128,2]
[395875569,1764733844763,-1393.89,0.00011128,2]
[395875571,1764733844773,-167.01,0.00011128,2]
[395875573,1764733844782,-297.9885107,0.00011129,2]
[395875575,1764733844791,-656.78,0.00011297,2]
[395875578,1764733844801,-2435.5,0.00011297,2]
[395875580,1764733844811,-500.0,0.00011297,2]
[395875582,1764733844820,-753.25,0.00011297,2]
[395875584,1764733844830,-522.78,0.00011297,2]
[395875586,1764733844840,-500.0,0.00011297,2]
[395875588,1764733844849,-1714.61,0.00011298,2]
[395875590,1764733844859,-770.08,0.00011298,2]
[395875592,1764733844868,-549.43,0.00011298,2]
[395875594,1764733844878,-500.0,0.00011298,2]
[395875596,1764733844887,-5054.79,0.00011298,2]
[395875598,1764733844896,-3809.48,0.00011298,2]
[395875600,1764733844905,-500.0,0.00011298,2]
[395875602,1764733844914,-500.0,0.00011298,2]
[395875604,1764733844924,-500.0,0.00011298,2]
[395875606,1764733844933,-1108.97,0.00011298,2]
[395875608,1764733844943,-957.34,0.00011298,2]
[395875610,1764733844952,-500.0,0.00011298,2]
[395875612,1764733844961,-500.0,0.00011299,2]
[395875614,1764733844971,-500.0,0.00011299,2]
[395875616,1764733844981,-500.0,0.00011299,2]
[395875618,1764733844991,-207.48110429,0.00011299,2]
[395875620,1764733845000,-500.0,0.00011299,2]
[395875622,1764733845010,-500.0,0.00011299,2]
[395875624,1764733845020,-500.0,0.00011299,2]
[395875626,1764733845029,-500.0,0.00011299,2]
[395875628,1764733845039,-500.0,0.00011299,2]
[395875630,1764733845048,-500.0,0.00011299,2]
[395875632,1764733845059,-600.67352367,0.00011299,2]
[395875634,1764733845068,-500.0,0.00011299,2]
[395875636,1764733845079,-550.02,0.00011299,2]
[395875638,1764733845088,-1061.51,0.00011299,2]
[395875640,1764733845097,-1670.58,0.00011299,2]
[395875642,1764733845106,-586.22,0.00011299,2]
[395875644,1764733845116,-500.0,0.00011299,2]
[395875646,1764733845125,-500.0,0.00011299,2]
[395875648,1764733845134,-1419.24,0.00011299,2]
[395875650,1764733845144,-500.0,0.00011299,2]
[395875652,1764733845153,-500.0,0.00011299,2]
[395875654,1764733845162,-500.0,0.00011299,2]
[395875656,1764733845172,-500.0,0.00011299,2]
[395875658,1764733845182,-703.05,0.00011299,2]
[395875660,1764733845192,-903.19,0.00011299,2]
[395875662,1764733845203,-834.28,0.00011299,2]
[395875664,1764733845212,-1266.03,0.00011299,2]
[395875666,1764733845223,-500.0,0.00011299,2]
[395875668,1764733845233,-1415.67,0.00011299,2]
[395875670,1764733845243,-638.84,0.00011299,2]
[395875671,1764733845252,-1648.32,0.00011299,2]
[395875672,1764733845261,-500.0,0.00011299,2]
[395875673,1764733845271,-543.70589371,0.00011299,2]
[395875674,1764733845281,-1303.79,0.00011299,2]
[395875675,1764733845290,-491.72281672,0.00011299,2]
[395875676,1764733845300,-500.0,0.00011299,2]
[395875677,1764733845309,-500.0,0.00011299,2]
[395875678,1764733845319,-500.0,0.00011299,2]
[395875679,1764733845329,-500.0,0.00011299,2]
[395875680,1764733845338,-500.0,0.00011299,2]
[395875681,1764733845348,-500.0,0.00011299,2]
[395875682,1764733845357,-1083.91,0.00011299,2]
[395875683,1764733845366,-500.0,0.00011299,2]
[395875684,1764733845376,-500.0,0.00011299,2]
[395875685,1764733845386,-1510.04,0.00011299,2]
[395875686,1764733845395,-1313.93,0.00011299,2]
[395875687,1764733845405,-500.0,0.00011299,2]
[395875688,1764733845415,-500.0,0.00011299,2]
[395875689,1764733845426,-500.0,0.00011299,2]
[395875690,1764733845436,-1286.11,0.00011299,2]
[395875691,1764733845450,-500.0,0.00011299,2]
[395875693,1764733845460,-527.09,0.00011299,2]
[395875695,1764733845470,-1598.94,0.00011299,2]
[395875697,1764733845480,-1096.74,0.00011299,2]
[395875699,1764733845490,-710.29,0.00011299,2]
[395875701,1764733845500,-500.0,0.00011299,2]
[395875703,1764733845511,-535.24,0.00011299,2]
[395875705,1764733845521,-598.99,0.00011299,2]
[395875707,1764733845531,-500.0,0.00011299,2]
[395875709,1764733845541,-287.89161487,0.00011299,2]
[395875711,1764733845551,-1417.59,0.00011299,2]
[395875713,1764733845560,-500.0,0.00011299,2]
[395875715,1764733845570,-500.0,0.00011299,2]
[395875717,1764733845581,-833.44,0.00011299,2]
[395875719,1764733845591,-4966.01,0.00011299,2]
[395875721,1764733845601,-500.0,0.000113,2]
[395875723,1764733845610,-1035.35,0.000113,2]
[395875725,1764733845620,-500.0,0.000113,2]
[395875727,1764733845630,-500.0,0.000113,2]
[395875729,1764733845639,-500.0,0.000113,2]
[395875731,1764733845649,-500.0,0.000113,2]
[395875733,1764733845659,-500.0,0.000113,2]
[395875735,1764733845669,-500.0,0.000113,2]
[395875737,1764733845680,-1247.63,0.000113,2]
[395875739,1764733845690,-851.03,0.000113,2]
[395875741,1764733845700,-500.0,0.000113,2]
[395875743,1764733845710,-500.0,0.000113,2]
[395875745,1764733845720,-500.0,0.000113,2]
[395875747,1764733845731,-598.65,0.000113,2]
[395875749,1764733845740,-500.0,0.000113,2]
[395875751,1764733845749,-500.0,0.000113,2]
[395875753,1764733845758,-535.86,0.000113,2]
[395875755,1764733845768,-500.0,0.000113,2]
[395875757,1764733845777,-598.38,0.000113,2]
[395875759,1764733845787,-154.40999342,0.000113,2]
[395875761,1764733845797,-747.55,0.000113,2]
[395875763,1764733845807,-697.52,0.000113,2]
[395875765,1764733845817,-709.73,0.000113,2]
[395875767,1764733845827,-824.84,0.000113,2]
[395875769,1764733845837,-506.31,0.000113,2]
[395875771,1764733845846,-500.0,0.000113,2]
[395875773,1764733845855,-500.0,0.000113,2]
[395875775,1764733845864,-740.19,0.000113,2]
[395875777,1764733845874,-500.0,0.000113,2]
[395875779,1764733845883,-500.0,0.000113,2]
[395875781,1764733845893,-500.0,0.000113,2]
[395875783,1764733845903,-500.0,0.000113,2]
[395875785,1764733845913,-500.0,0.000113,2]
[395875787,1764733845923,-609.09,0.000113,2]
[395875788,1764733845933,-500.0,0.000113,2]
[395875790,1764733845942,-1260.45,0.000113,2]
[395875792,1764733845952,-500.0,0.000113,2]
[395875793,1764733845961,-500.0,0.000113,2]
[395875795,1764733845971,-629.02443958,0.000113,2]
[395875797,1764733845980,-500.0,0.000113,2]
[395875799,1764733845990,-500.0,0.000113,2]
[395875801,1764733846000,-500.0,0.000113,2]
[395875803,1764733846010,-671.22,0.000113,2]
[395875805,1764733846019,-519.87,0.000113,2]
[395875807,1764733846029,-500.0,0.000113,2]
[395875809,1764733846038,-591.47,0.000113,2]
[395875811,1764733846048,-593.68,0.000113,2]
[395875812,1764733846057,-500.0,0.000113,2]
[395875814,1764733846068,-500.0,0.000113,2]
[395875816,1764733846078,-500.0,0.000113,2]
[395875818,1764733846087,-544.13,0.000113,2]
[395875820,1764733846097,-500.0,0.000113,2]
[395875822,1764733846106,-500.0,0.000113,2]
[395875824,1764733846116,-702.0,0.000113,2]
[395875826,1764733846125,-500.0,0.000113,2]
[395875828,1764733846135,-500.0,0.000113,2]
[395875830,1764733846144,-1488.57,0.000113,2]
[395875832,1764733846154,-1146.42,0.000113,2]
[395875834,1764733846164,-500.0,0.000113,2]
[395875836,1764733846173,-681.98,0.000113,2]
[395875838,1764733846183,-500.0,0.000113,2]
[395875840,1764733846193,-500.0,0.000113,2]
[395875842,1764733846202,-500.0,0.000113,2]
[395875844,1764733846212,-1200.06,0.000113,2]
[395875846,1764733846221,-500.0,0.000113,2]
[395875848,1764733846230,-500.0,0.000113,2]
[395875850,1764733846240,-500.0,0.000113,2]
[395875851,1764733846249,-500.0,0.000113,2]
[395875853,1764733846259,-1179.04,0.00011301,2]
[395875855,1764733846268,-1023.97,0.00011301,2]
[395875857,1764733846277,-4528.09,0.00011301,2]
[395875859,1764733846286,-3579.68,0.00011301,2]
[395875861,1764733846296,-500.0,0.00011301,2]
[395875863,1764733846305,-875.29,0.00011301,2]
[395875865,1764733846314,-500.0,0.00011301,2]
[395875867,1764733846325,-770.57,0.00011301,2]
[395875869,1764733846335,-759.24,0.00011301,2]
[395875871,1764733846345,-823.64,0.00011301,2]
[395875873,1764733846354,-3372.12,0.00011301,2]
[395875875,1764733846365,-500.0,0.00011301,2]
[395875877,1764733846382,-500.0,0.00011301,2]
[395875879,1764733846391,-590.18,0.00011301,2]
[395875881,1764733846401,-980.54,0.00011301,2]
[395875883,1764733846411,-1120.57,0.00011301,2]
[395875885,1764733846421,-2764.84,0.00011301,2]
[395875887,1764733846432,-500.0,0.00011301,2]
[395875889,1764733846446,-500.0,0.00011301,2]
[395875891,1764733846456,-500.0,0.00011301,2]
[395875893,1764733846466,-947.86,0.00011301,2]
[395875895,1764733846476,-842.28,0.00011301,2]
[395875897,1764733846486,-3479.18,0.00011301,2]
[395875899,1764733846496,-500.0,0.00011301,2]
[395875900,1764733846505,-985.24,0.00011301,2]
[395875902,1764733846515,-940.77,0.00011301,2]
[395875904,1764733846524,-750.41,0.00011301,2]
[395875906,1764733846534,-1343.15,0.00011301,2]
[395875908,1764733846543,-2046.36,0.00011301,2]
[395875910,1764733846553,-500.0,0.00011301,2]
[395875912,1764733846562,-1435.81,0.00011301,2]
[395875913,1764733846572,-2782.02,0.00011302,2]
[395875915,1764733846582,-1985.44,0.00011302,2]
[395875917,1764733846592,-7020.45,0.00011302,2]
[395875919,1764733846601,-5267.21867244,0.00011303,2]
[395875921,1764733846611,-545.24581276,0.00011402,2]
[395875923,1764733846620,-500.0,0.00011402,2]
[395875925,1764733846630,-500.0,0.00011402,2]
[395875927,1764733846640,-500.0,0.00011402,2]
[395875929,1764733846650,-500.0,0.00011402,2]
[395875931,1764733846660,-500.0,0.00011402,2]
[395875933,1764733846670,-500.0,0.00011402,2]
[395875935,1764733846680,-635.5,0.00011402,2]
[395875937,1764733846691,-500.0,0.00011402,2]
[395875939,1764733846700,-652.11,0.00011402,2]
[395875941,1764733846710,-500.0,0.00011402,2]
[395875943,1764733846721,-500.0,0.00011402,2]
[395875945,1764733846731,-500.0,0.00011402,2]
[395875947,1764733846741,-500.0,0.00011402,2]
[395875948,1764733846750,-500.0,0.00011402,2]
[395875950,1764733846760,-505.93653533,0.00011402,2]
[395875952,1764733846769,-500.0,0.00011402,2]
[395875954,1764733846778,-500.0,0.00011402,2]
[395875956,1764733846788,-500.0,0.00011402,2]
[395875958,1764733846798,-500.0,0.00011402,2]
[395875960,1764733846807,-500.0,0.00011402,2]
[395875962,1764733846817,-500.0,0.00011402,2]
[395875964,1764733846827,-500.0,0.00011402,2]
[395875966,1764733846836,-612.05,0.00011402,2]
[395875968,1764733846846,-500.0,0.00011402,2]
[395875970,1764733846856,-500.0,0.00011402,2]
[395875972,1764733846865,-500.0,0.00011402,2]
[395875973,1764733846874,-500.0,0.00011402,2]
[395875975,1764733846884,-712.15,0.00011402,2]
[395875977,1764733846894,-500.0,0.00011402,2]
[395875979,1764733846904,-500.0,0.00011402,2]
[395875981,1764733846913,-500.0,0.00011402,2]
[395875983,1764733846923,-500.0,0.00011402,2]
[395875985,1764733846932,-500.0,0.00011402,2]
[395875987,1764733846941,-500.0,0.00011402,2]
[395875989,1764733846951,-500.0,0.00011402,2]
[395875991,1764733846960,-635.11,0.00011402,2]
[395875993,1764733846969,-500.0,0.00011402,2]
[395875995,1764733846979,-500.0,0.00011402,2]
[395875997,1764733846988,-500.0,0.00011402,2]
[395875999,1764733847003,-500.0,0.00011402,2]
[395876001,1764733847016,-500.0,0.00011402,2]
[395876003,1764733847026,-632.85,0.00011402,2]
[395876005,1764733847035,-500.0,0.00011402,2]
[395876007,1764733847044,-500.0,0.00011402,2]
[395876009,1764733847054,-500.0,0.00011402,2]
[395876010,1764733847063,-500.0,0.00011402,2]
[395876012,1764733847073,-500.0,0.00011402,2]
[395876014,1764733847082,-500.0,0.00011402,2]
[395876016,1764733847091,-500.0,0.00011402,2]
[395876018,1764733847100,-500.0,0.00011402,2]
[395876020,1764733847110,-500.0,0.00011402,2]
[395876022,1764733847118,-500.0,0.00011402,2]
[395876023,1764733847127,-508.66,0.00011402,2]
[395876025,1764733847137,-500.0,0.00011402,2]
[395876027,1764733847146,-1184.13,0.00011402,2]
[395876029,1764733847155,-500.0,0.00011402,2]
[395876031,1764733847165,-1127.47,0.00011402,2]
[395876033,1764733847175,-500.0,0.00011402,2]
[395876035,1764733847185,-500.0,0.00011402,2]
[395876037,1764733847195,-500.0,0.00011402,2]
[395876039,1764733847206,-502.45,0.00011402,2]
[395876041,1764733847216,-500.0,0.00011402,2]
[395876043,1764733847225,-500.0,0.00011402,2]
[395876045,1764733847235,-500.0,0.00011402,2]
[395876047,1764733847245,-549.39297154,0.00011402,2]
[395876048,1764733847255,-728.66,0.00011402,2]
[395876050,1764733847265,-500.0,0.00011402,2]
[395876052,1764733847274,-500.0,0.00011402,2]
[395876054,1764733847283,-581.11,0.00011402,2]
[395876056,1764733847292,-424.72371216,0.00011402,2]
[395876058,1764733847302,-500.0,0.00011402,2]
[395876060,1764733847311,-500.0,0.00011402,2]
[395876062,1764733847320,-540.4,0.00011402,2]
[395876064,1764733847330,-500.0,0.00011402,2]
[395876066,1764733847339,-500.0,0.00011402,2]
[395876068,1764733847348,-500.0,0.00011402,2]
[395876070,1764733847358,-500.0,0.00011402,2]
[395876072,1764733847367,-500.0,0.00011402,2]
[395876074,1764733847377,-570.68,0.00011402,2]
[395876076,1764733847387,-505.82,0.00011402,2]
[395876078,1764733847397,-500.0,0.00011402,2]
[395876080,1764733847406,-500.0,0.00011402,2]
[395876082,1764733847415,-500.0,0.00011402,2]
[395876084,1764733847425,-547.23,0.00011402,2]
[395876085,1764733847434,-500.0,0.00011402,2]
[395876087,1764733847448,-500.0,0.00011402,2]
[395876089,1764733847458,-500.0,0.00011402,2]
[395876091,1764733847467,-1036.57,0.00011402,2]
[395876093,1764733847476,-500.0,0.00011402,2]
[395876095,1764733847487,-500.0,0.00011402,2]
[395876097,1764733847496,-862.74,0.00011402,2]
[395876099,1764733847505,-500.0,0.00011402,2]
[395876101,1764733847515,-500.0,0.00011402,2]
[395876103,1764733847524,-500.0,0.00011402,2]
[395876105,1764733847534,-501.43,0.00011402,2]
[395876107,1764733847543,-636.4,0.00011402,2]
[395876109,1764733847553,-500.0,0.00011402,2]
[395876110,1764733847562,-500.0,0.00011402,2]
[395876112,1764733847571,-628.39,0.00011402,2]
[395876115,1764733847582,-500.0,0.00011402,2]
[395876116,1764733847591,-770.15,0.00011402,2]
[395876138,1764733847792,-759.11,0.00011402,2]
[395876140,1764733847802,-1472.5,0.00011402,2]
[395876142,1764733847811,-500.0,0.00011402,2]
[395876144,1764733847821,-500.0,0.00011402,2]
[395876146,1764733847831,-546.49,0.00011402,2]
[395876148,1764733847840,-500.0,0.00011402,2]
[395876150,1764733847849,-816.6,0.00011402,2]
[395876152,1764733847859,-500.0,0.00011402,2]
[395876154,1764733847868,-575.46,0.00011402,2]
[395876156,1764733847878,-500.0,0.00011402,2]
[395876158,1764733847887,-500.0,0.00011402,2]
[395876160,1764733847896,-500.0,0.00011402,2]
[395876162,1764733847906,-501.43,0.00011402,2]
[395876163,1764733847916,-500.0,0.00011402,2]
[395876165,1764733847925,-500.0,0.00011402,2]
[395876166,1764733847934,-500.0,0.00011402,2]
[395876167,1764733847944,-500.0,0.00011402,2]
[395876168,1764733847952,-1021.42,0.00011402,2]
[395876169,1764733847961,-500.0,0.00011402,2]
[395876170,1764733847970,-500.0,0.00011402,2]
[395876171,1764733847979,-1683.21,0.00011402,2]
[395876172,1764733847989,-750.91,0.00011402,2]
[395876173,1764733847998,-500.0,0.00011402,2]
[395876174,1764733848006,-500.0,0.00011402,2]
[395876175,1764733848015,-500.0,0.00011402,2]
[395876176,1764733848024,-539.58,0.00011402,2]
[395876177,1764733848033,-500.0,0.00011402,2]
[395876178,1764733848042,-506.74794797,0.00011402,2]
[395876179,1764733848051,-500.0,0.00011402,2]
[395876180,1764733848060,-1393.89,0.00011402,2]
[395876182,1764733848070,-167.01,0.00011402,2]
[395876184,1764733848079,-267.77045798,0.0001147,2]
[395876186,1764733848090,-462.79856867,0.0001147,2]
[395876188,1764733848100,-301.8292211,0.00011507,2]
[395876190,1764733848110,-300.0,0.00011559,2]
[395876192,1764733848119,-300.0,0.00011559,2]
[395876194,1764733848129,-300.0,0.00011559,2]
[395876196,1764733848140,-300.0,0.00011559,2]
[395876198,1764733848149,-300.0,0.00011559,2]
[395876200,1764733848159,-300.0,0.00011559,2]
[395876202,1764733848169,-300.0,0.00011559,2]
[395876204,1764733848178,-300.0,0.00011559,2]
[395876206,1764733848188,-300.0,0.00011559,2]
[395876208,1764733848198,-300.0,0.00011559,2]
[395876210,1764733848207,-300.0,0.00011559,2]
[395876212,1764733848217,-300.0,0.00011559,2]
[395876214,1764733848226,-300.0,0.00011559,2]
[395876216,1764733848235,-300.0,0.00011559,2]
[395876218,1764733848244,-300.0,0.00011559,2]
[395876220,1764733848254,-600.0,0.00011564,2]
[395876222,1764733848264,-656.78,0.00011571,2]
[395876224,1764733848273,-2435.5,0.00011571,2]
[395876226,1764733848282,-500.0,0.00011571,2]
[395876228,1764733848292,-753.25,0.00011571,2]
[395876230,1764733848301,-522.78,0.00011571,2]
[395876232,1764733848311,-589.24,0.00011571,2]
[395876234,1764733848321,-1714.61,0.00011572,2]
[395876236,1764733848331,-770.08,0.00011572,2]
[395876238,1764733848340,-549.43,0.00011572,2]
[395876240,1764733848349,-500.0,0.00011572,2]
[395876242,1764733848358,-5054.79,0.00011572,2]
[395876243,1764733848368,-3809.48,0.00011572,2]
[395876245,1764733848377,-500.0,0.00011572,2]
[395876247,1764733848388,-500.0,0.00011572,2]
[395876249,1764733848398,-500.0,0.00011572,2]
[395876251,1764733848408,-1108.97,0.00011572,2]
[395876253,1764733848417,-957.34,0.00011572,2]
[395876255,1764733848426,-500.0,0.00011572,2]
[395876257,1764733848436,-500.0,0.00011573,2]
[395876259,1764733848449,-500.0,0.00011573,2]
[395876261,1764733848458,-500.0,0.00011573,2]
[395876263,1764733848467,-500.0,0.00011573,2]
[395876265,1764733848476,-500.0,0.00011573,2]
[395876267,1764733848486,-500.0,0.00011573,2]
[395876269,1764733848495,-405.17806811,0.00011573,2]
[395876271,1764733848506,-500.0,0.00011573,2]
[395876273,1764733848516,-500.0,0.00011573,2]
[395876275,1764733848525,-550.02,0.00011573,2]
[395876277,1764733848535,-1061.51,0.00011573,2]
[395876279,1764733848544,-1670.58,0.00011573,2]
[395876281,1764733848554,-586.22,0.00011573,2]
[395876283,1764733848563,-500.0,0.00011573,2]
[395876285,1764733848572,-1419.24,0.00011573,2]
[395876287,1764733848582,-500.0,0.00011573,2]
[395876289,1764733848591,-500.0,0.00011573,2]
[395876291,1764733848601,-500.0,0.00011573,2]
[395876293,1764733848611,-500.0,0.00011573,2]
[395876295,1764733848620,-703.05,0.00011573,2]
[395876297,1764733848629,-903.19,0.00011573,2]
[395876299,1764733848639,-834.28,0.00011573,2]
[395876301,1764733848648,-1266.03,0.00011573,2]
[395876303,1764733848658,-1415.67,0.00011573,2]
[395876305,1764733848668,-638.84,0.00011573,2]
[395876307,1764733848677,-1648.32,0.00011573,2]
[395876309,1764733848687,-1303.79,0.00011573,2]
[395876311,1764733848696,-500.0,0.00011573,2]
[395876313,1764733848705,-500.0,0.00011573,2]
[395876315,1764733848715,-500.0,0.00011573,2]
[395876317,1764733848724,-500.0,0.00011573,2]